{"text_format":"2","workbook":"xlsx","n_sheets":1,"sheets":["Munka1"],"not_rendered":{"charts":0,"images":0,"macros":0,"external_links":0,"defined_names":0,"comments":0,"pivot_tables":0},"unopened":[],"bounds":{"document_bytes":16777216,"sheet_cells":100000,"run_cost":"one","rows_first":2000,"rows_last":500,"rows_between":2000,"halvings":0,"cell_chars":16384,"cell_head_chars":4096},"cells_cut":0,"cells_raw":0,"read":"whole","date_system":"1900"}

{"sheet":"Munka1","index":0,"n_rows":15,"n_cols":14,"rows_kept":15,"cut":false,"hidden":false,"merged":[]}
["Sorszám","SZOTE szám","Készlet megnevezése","Típus","Karbantartás        1 alk.               Ft/év","Javítási munkaóra","Javítási munkaóra Ft/év","Kiszállás    alk/év","Kiszállási költség       Ft/év","Anyagköltség  Ft/év","Összesen nettó Ft/év","Összesen nettó Ft/2 év","Összesen bruttó Ft/év","Összesen bruttó Ft/2 év"]
[1,506998,"Kriosztát mikrotóm","Leica Cryocut 1800",{"$nulls":7},{"$f":"K2*2","v":0},{"$f":"1.27*K2","v":0},{"$f":"1.27*L2","v":0}]
[2,504624,"Ultramikrotom","Leica UCS",{"$nulls":7},{"$f":"K3*2","v":0},{"$f":"1.27*K3","v":0},{"$f":"1.27*L3","v":0}]
[3,522857,"Beágyazó automata","Leica EM TP",{"$nulls":7},{"$f":"K4*2","v":0},0,0]
[4,59431,"Rotációs mikrotóm","Shandon 325",{"$nulls":7},{"$f":"K5*2","v":0},0,0]
[5,52377,"Rotációs mikrotóm","Shandon 325",{"$nulls":7},{"$f":"K6*2","v":0},0,0]
[6,59941,"Rotációs mikrotóm","Shandon 325",null," ",{"$nulls":5},0,0,0]
[7,51773,"Rotációs mikrotóm","Shandon 325",{"$nulls":7},0,0,0]
[8,50633,"Rotációs mikrotóm","Shandon 325",{"$nulls":7},0,0,0]
[9,51772,"Rotációs mikrotóm","Shandon 325",null," ",{"$nulls":5},0,0,0]
[10,59940,"Rotációs mikrotóm","Shandon 325",null," ",{"$nulls":5},0,0,0]
[11,59431,"Rotációs mikrotóm","Shandon 325",null," ",{"$nulls":5},0,0,0]
[12,50634,"Rotációs mikrotóm","Shandon 325",null," ",{"$nulls":5},0,0,0]
[13,50635,"Rotációs mikrotóm","Shandon 325",{"$nulls":7},0,0,0]
[{"$nulls":4},{"$f":"SUM(E2:E14)","v":0},null,{"$f":"SUM(G2:G14)","v":0},null,{"$f":"SUM(I2:I14)","v":0},0,0,0,0,0]